fUSD/lending_fUSD_20260508
["ID","MTS","AMOUNT","RATE_DAILY","PERIOD"]
[421868233,1778251847000,-526.09443933,0.00017255,2]
[421868212,1778251847000,-1000.0,0.00016986,2]
[421868216,1778251847000,-505.65122917,0.00017035,2]
[421868214,1778251847000,-526.09443933,0.00016986,2]
[421868227,1778251847000,-6740.68518017,0.00017191,2]
[421868229,1778251847000,-3000.67075163,0.00017191,2]
[421868231,1778251847000,-505.65122917,0.00017217,2]
[421868220,1778251847000,-526.09443933,0.00017119,2]
[421868252,1778251847000,-168.9,0.00018044,2]
[421868222,1778251847000,-526.09443933,0.00017134,2]
[421868225,1778251847000,-350.61787901,0.00017151,2]
[421868235,1778251847000,-550.0,0.0001726,2]
[421868245,1778251847000,-505.65122917,0.00017446,2]
[421868247,1778251847000,-1500.0,0.00017534,2]
[421868246,1778251847000,-587.0,0.00017499,2]
[421868210,1778251847000,-1001.56590806,0.00016986,2]
[421868250,1778251847000,-2129.84,0.00017728,2]
[421868218,1778251847000,-505.65122917,0.00017038,2]
[421868208,1778251847000,-408.49076365,0.00016986,2]
[421868251,1778251847000,-164.82858637,0.00018,2]
[421868201,1778251847000,-501.17746914,0.00016973,2]
[421868168,1778251847000,-314.02084502,0.00016608,2]
[421868178,1778251847000,-526.09443933,0.00016617,2]
[421868170,1778251847000,-163.74169013,0.00016608,2]
[421868174,1778251847000,-500.50023141,0.00016608,2]
[421868172,1778251847000,-501.81621784,0.00016608,2]
[421868176,1778251847000,-501.31785303,0.00016608,2]
[421868180,1778251847000,-174.516957,0.00016647,2]
[421868182,1778251847000,-505.65122917,0.00016681,2]
[421868193,1778251847000,-505.65122917,0.00016794,2]
[421868185,1778251847000,-505.65122917,0.00016706,2]
[421868195,1778251847000,-5923.81,0.00016922,2]
[421868183,1778251847000,-505.65122917,0.00016683,2]
[421868197,1778251847000,-8504.21,0.00016922,2]
[421868189,1778251847000,-450.0,0.00016712,2]
[421868199,1778251847000,-433.0,0.00016934,2]
[421868191,1778251847000,-526.09443933,0.00016719,2]
[421868187,1778251847000,-175.42,0.00016712,2]
[421868207,1778251847000,-254.5472085,0.00016986,2]
[421868205,1778251847000,-502.49800134,0.00016973,2]
[421868203,1778251847000,-521.26148379,0.00016973,2]
[421868249,1778251847000,-344.0,0.00017661,2]
[421868237,1778251847000,-2000.0,0.00017308,2]
[421868239,1778251847000,-150.15,0.00017308,2]
[421868273,1778251847000,-500.0,0.00019178,2]
[421868276,1778251847000,-10340.39711699,0.00019178,2]
[421868274,1778251847000,-500.0,0.00019178,2]
[421868283,1778251847000,-308.0,0.000198,2]
[421868277,1778251847000,-155.0,0.00019577,5]
[421868275,1778251847000,-742.47288301,0.00019178,2]
[421868279,1778251847000,-1252.0,0.00019634,2]
[421868278,1778251847000,-151.0,0.00019577,5]
[421868272,1778251847000,-500.0,0.00019178,2]
[421868281,1778251847000,-6740.68518017,0.00019779,2]
[421868282,1778251847000,-3000.67075163,0.00019779,2]
[421868285,1778251847000,-314.0,0.000198,2]
[421868284,1778251847000,-1000.0,0.000198,2]
[421868287,1778251847000,-1246.04606468,0.00019868,2]
[421868286,1778251847000,-579.69243456,0.00019868,2]
[421868288,1778251847000,-151.0,0.00019947,2]
[421868290,1778251847000,-839.06718577,0.00019949,2]
[421868289,1778251847000,-1097.31530158,0.00019949,5]
[421868280,1778251847000,-150.0,0.00019644,5]
[421868264,1778251847000,-417.0,0.00018825,2]
[421868248,1778251847000,-162.33,0.00017616,2]
[421868267,1778251847000,-836.47677961,0.000189,6]
[421868243,1778251847000,-505.65122917,0.00017389,2]
[421868244,1778251847000,-156.39,0.00017442,2]
[421868241,1778251847000,-1825.73849924,0.00017384,2]
[421868253,1778251847000,-2000.0,0.00018082,2]
[421868257,1778251847000,-164.82858637,0.000184,2]
[421868256,1778251847000,-211.0,0.00018379,2]
[421868254,1778251847000,-164.82858637,0.000182,2]
[421868263,1778251847000,-6045.0,0.00018693,2]
[421868259,1778251847000,-1298.0691939,0.0001863,2]
[421868255,1778251847000,-736.0,0.00018233,2]
[421868261,1778251847000,-773.382,0.00018693,2]
[421868260,1778251847000,-1352.0,0.00018693,2]
[421868262,1778251847000,-898.301,0.00018693,2]
[421868271,1778251847000,-500.0,0.00019178,2]
[421868270,1778251847000,-647.27860605,0.00019159,2]
[421868268,1778251847000,-2000.0,0.00019038,2]
[421868266,1778251847000,-3463.52322039,0.000189,6]
[421868269,1778251847000,-9.72139395,0.00019159,2]
[421868265,1778251847000,-582.30275321,0.000189,2]
[421868258,1778251847000,-503.1,0.0001841,2]
[421868293,1778251876000,-152.0,0.00015953,7]
[421868298,1778252357000,-498.0,0.00014498,2]
[421868297,1778252357000,-300.0,0.00014498,2]
[421868299,1778252427000,-1200.0,0.00014498,2]
[421868302,1778252427000,-5000.0,0.00014854,2]
[421868300,1778252427000,-287.0,0.00014498,2]
[421868301,1778252427000,-15106.9625,0.00014499,2]
[421868313,1778252610000,158.72,0.00015,14]
[421868311,1778252610000,83.95720376,0.00015,14]
[421868312,1778252610000,157.66,0.00015,14]
[421868319,1778252731000,6986.59103248,0.000107,2]
[421868345,1778253032000,-300.0,0.00014499,2]
[421868344,1778253032000,-1800.0,0.000144,5]
[421868341,1778253032000,-278.63978151,0.00014307,2]
[421868342,1778253032000,-61.84225867,0.00014399,2]
[421868338,1778253032000,-211.98082849,0.00014,2]
[421868339,1778253032000,-38.01917151,0.00014,2]
[421868340,1778253032000,-221.36021849,0.00014307,2]
[421868334,1778253032000,-68.25215709,0.00013488,2]
[421868336,1778253032000,-150.0,0.00013488,2]
[421868335,1778253032000,-150.0,0.00013488,2]
[421868333,1778253032000,-81.74784291,0.00013488,2]
[421868332,1778253032000,-150.0,0.00013488,2]
[421868331,1778253032000,-150.0,0.00013488,2]
[421868346,1778253032000,-3700.0,0.000145,5]
[421868337,1778253032000,-278.41425844,0.00013488,2]
[421868347,1778253032000,-438.07571135,0.000146,5]
[421868357,1778253032000,-1800.0,0.000149,5]
[421868348,1778253032000,-5061.92428865,0.000146,5]
[421868362,1778253032000,-1299.03109547,0.000149,2]
[421868361,1778253032000,-335.31456548,0.000149,2]
[421868363,1778253032000,-2468.05833915,0.000149,2]
[421868364,1778253032000,-3809.40052919,0.000149,2]
[421868343,1778253032000,-1138.15774133,0.00014399,2]
[421868356,1778253032000,-21004.69526141,0.000149,2]
[421868358,1778253032000,-285.48692812,0.000149,2]
[421868354,1778253032000,-2000.0,0.00014847,2]
[421868360,1778253032000,-36865.68458928,0.000149,2]
[421868355,1778253032000,-150.0,0.00014899,2]
[421868353,1778253032000,-316.98020239,0.00014836,2]
[421868350,1778253032000,-177.372,0.000147,2]
[421868351,1778253032000,-7400.0,0.000147,5]
[421868352,1778253032000,-9200.0,0.000148,5]
[421868349,1778253032000,-1505.075,0.000147,2]
[421868359,1778253032000,-1162.96824786,0.000149,2]
[421868377,1778253038000,-19039.77383752,0.00015,2]
[421868370,1778253038000,-996.93,0.000149,2]
[421868375,1778253038000,-5541.39664068,0.000149,2]
[421868374,1778253038000,-1410.37714262,0.000149,2]
[421868376,1778253038000,-500.0,0.00014999,2]
[421868379,1778253038000,-300.72668511,0.00015,2]
[421868386,1778253038000,-8539.3814926,0.00015,2]
[421868380,1778253038000,-2510.56407474,0.00015,2]
[421868381,1778253038000,-544.23675786,0.00015,2]
[421868382,1778253038000,-7214075.69943046,0.00015,2]
[421868383,1778253038000,-321.24247351,0.00015,2]
[421868384,1778253038000,-637.55172502,0.00015,2]
[421868385,1778253038000,-393.5914351,0.00015,2]
[421868378,1778253038000,-380.52932165,0.00015,2]
[421868570,1778253040000,-1614.75008106,0.00015,2]
[421868568,1778253040000,-7314.64809695,0.00015,2]
[421868565,1778253040000,-878.64494776,0.00015,2]
[421869027,1778253043000,-2033.87741151,0.00015,2]
[421869030,1778253043000,-16171.87856733,0.00015,2]
[421869025,1778253043000,-348.55532768,0.000149,2]
[421869023,1778253043000,-282.36355332,0.000149,2]
[421869033,1778253044000,-441.14734889,0.00015,2]
[421869382,1778253046000,-484.97280941,0.00015,2]
[421869381,1778253046000,-497.34458783,0.00015,2]
[421869383,1778253046000,-11805.68425283,0.00015,2]
[421869385,1778253046000,-2615.06022955,0.00015,2]
[421869387,1778253046000,-12583.41561007,0.00015,2]
[421869397,1778253046000,-489.43218081,0.00015,2]
[421869391,1778253046000,-9192.65472893,0.00015,2]
[421869395,1778253046000,-43945.07179635,0.00015,2]
[421869396,1778253046000,-488.63558882,0.00015,2]
[421869389,1778253046000,-70397.0624024,0.00015,2]
[421869401,1778253047000,-250.0,0.00015,2]
[421869417,1778253148000,-500.0,0.00014999,2]
[421869416,1778253148000,-197.98231163,0.00014999,2]
[421869414,1778253148000,-500.0,0.00014999,2]
[421869415,1778253148000,-500.0,0.00014999,2]
[421869418,1778253148000,-500.0,0.00014999,2]
[421869412,1778253148000,-1134.23141429,0.000149,2]
[421869411,1778253148000,-769.92911676,0.000149,2]
[421869409,1778253148000,-269.5151,0.000148,2]
[421869410,1778253148000,-1836.40953328,0.000149,2]
[421869413,1778253148000,-150.0,0.00014999,2]
[421869419,1778253148000,-500.0,0.00014999,2]
[421869429,1778253148000,-500.0,0.00014999,2]
[421869422,1778253148000,-500.0,0.00014999,2]
[421869432,1778253148000,-500.0,0.00014999,2]
[421869420,1778253148000,-500.0,0.00014999,2]
[421869430,1778253148000,-500.0,0.00014999,2]
[421869425,1778253148000,-500.0,0.00014999,2]
[421869427,1778253148000,-500.0,0.00014999,2]
[421869431,1778253148000,-500.0,0.00014999,2]
[421869426,1778253148000,-500.0,0.00014999,2]
[421869424,1778253148000,-500.0,0.00014999,2]
[421869423,1778253148000,-500.0,0.00014999,2]
[421869421,1778253148000,-500.0,0.00014999,2]
[421869428,1778253148000,-500.0,0.00014999,2]
[421869437,1778253149000,-500.0,0.00014999,2]
[421869433,1778253149000,-195.76187447,0.00014999,2]
[421869436,1778253149000,-500.0,0.00014999,2]
[421869435,1778253149000,-500.0,0.00014999,2]
[421869438,1778253149000,-500.0,0.00014999,2]
[421869440,1778253149000,-500.0,0.00014999,2]
[421869439,1778253149000,-500.0,0.00014999,2]
[421869442,1778253149000,-500.0,0.00014999,2]
[421869434,1778253149000,-500.0,0.00014999,2]
[421869443,1778253149000,-500.0,0.00014999,2]
[421869444,1778253149000,-500.0,0.00014999,2]
[421869449,1778253149000,-33451.6113519,0.00014999,2]
[421869450,1778253149000,-34743.25692899,0.00015,2]
[421869447,1778253149000,-500.0,0.00014999,2]
[421869441,1778253149000,-500.0,0.00014999,2]
[421869446,1778253149000,-500.0,0.00014999,2]
[421869445,1778253149000,-500.0,0.00014999,2]
[421869448,1778253149000,-251.30236868,0.00014999,2]
[421869451,1778253354000,-2103.24589506,0.00015,14]
[421869452,1778253363000,-175.41,0.00014246,2]
[421869454,1778253363000,-1200.0,0.00014799,2]
[421869453,1778253363000,-175.41,0.00014746,2]
[421869455,1778253363000,-150.0,0.00014799,2]
[421869458,1778253363000,-6075.176,0.000148,2]
[421869460,1778253363000,-4860.39833456,0.000149,2]
[421869459,1778253363000,-738.40101041,0.000149,2]
[421869457,1778253363000,-131358.8599,0.000148,2]
[421869456,1778253363000,-300.0,0.00014799,2]
[421869471,1778253364000,-500.0,0.00014997,2]
[421869473,1778253364000,-500.0,0.00014997,2]
[421869474,1778253364000,-500.0,0.00014997,2]
[421869470,1778253364000,-500.0,0.00014997,2]
[421869467,1778253364000,-500.0,0.00014997,2]
[421869464,1778253364000,-500.0,0.00014997,2]
[421869466,1778253364000,-500.0,0.00014997,2]
[421869465,1778253364000,-500.0,0.00014997,2]
[421869463,1778253364000,-500.0,0.00014997,2]
[421869461,1778253364000,-5000.0,0.000149,2]
[421869472,1778253364000,-500.0,0.00014997,2]
[421869462,1778253364000,-1769.0,0.00014907,2]
[421869468,1778253364000,-500.0,0.00014997,2]
[421869476,1778253364000,-500.0,0.00014997,2]
[421869469,1778253364000,-500.0,0.00014997,2]
[421869475,1778253364000,-500.0,0.00014997,2]
[421869491,1778253364000,-2080.17592889,0.00015,2]
[421869490,1778253364000,-151.0,0.00015,2]
[421869489,1778253364000,-994.0353039,0.00015,2]
[421869488,1778253364000,-179320.71153693,0.00015,2]
[421869487,1778253364000,-15408.4285572,0.00014998,2]
[421869482,1778253364000,-635.47458213,0.00014997,2]
[421869486,1778253364000,-500.0,0.00014997,2]
[421869483,1778253364000,-500.0,0.00014997,2]
[421869485,1778253364000,-500.0,0.00014997,2]
[421869481,1778253364000,-500.0,0.00014997,2]
[421869479,1778253364000,-500.0,0.00014997,2]
[421869480,1778253364000,-500.0,0.00014997,2]
[421869478,1778253364000,-500.0,0.00014997,2]
[421869484,1778253364000,-500.0,0.00014997,2]
[421869477,1778253364000,-500.0,0.00014997,2]
[421869492,1778253370000,500.0,0.00014973,2]
[421869495,1778253370000,500.0,0.00014973,2]
[421869494,1778253370000,500.0,0.00014973,2]
[421869493,1778253370000,500.0,0.00014973,2]
[421869497,1778253371000,500.0,0.00014973,2]
[421869496,1778253371000,500.0,0.00014973,2]
[421869513,1778253605000,-211.62,0.00015041,2]
[421869502,1778253605000,-500.0,0.00014934,2]
[421869501,1778253605000,-2055.0808557,0.0001492,2]
[421869503,1778253605000,-2080.17592889,0.0001495,2]
[421869504,1778253605000,-930.91,0.00014952,2]
[421869508,1778253605000,-207.97335833,0.00014997,2]
[421869505,1778253605000,-150.0,0.00014966,2]
[421869507,1778253605000,-2000.0,0.00014987,2]
[421869510,1778253605000,-1203.45,0.00015008,2]
[421869511,1778253605000,-495.49,0.00015032,2]
[421869512,1778253605000,-200.0,0.00015039,2]
[421869509,1778253605000,-1200.0,0.00015007,2]
[421869506,1778253605000,-600.99,0.00014973,7]
[421869514,1778253607000,200.0,0.00015,2]
[421869517,1778253779000,155.85,8.577e-05,2]
[421869516,1778253779000,155.85,7.505e-05,2]
[421869518,1778253780000,155.85,9.649e-05,2]
[421869519,1778253780000,155.85,0.00010721,2]
[421869520,1778253780000,155.85,0.00011794,2]
[421869521,1778253780000,155.85,0.00012866,2]
[421869560,1778254231000,-292.18831868,0.00015041,2]
[421869558,1778254231000,-200.0,0.00015039,2]
[421869552,1778254231000,-4495.2,0.00014582,2]
[421869559,1778254231000,-201.53010334,0.0001504,2]
[421869561,1778254231000,-173.50311303,0.00015041,2]
[421869557,1778254231000,-155.85,0.0001501,2]
[421869554,1778254231000,-329.1492,0.00014988,2]
[421869556,1778254231000,-500.0,0.00014999,2]
[421869553,1778254231000,-2080.17592889,0.00014887,2]
[421869555,1778254231000,-500.0,0.00014999,2]
[421869551,1778254231000,-300.0,0.00014581,2]
[421869548,1778254231000,-94.26985733,0.00014567,2]
[421869546,1778254231000,-247.74,0.00014527,2]
[421869545,1778254231000,-319.3616693,0.00014036,2]
[421869543,1778254231000,-175.41,0.00013868,2]
[421869544,1778254231000,-155.85,0.00013938,2]
[421869550,1778254231000,-5204.55254013,0.00014567,2]
[421869549,1778254231000,-2247.63760254,0.00014567,2]
[421869563,1778254231000,-169.36,0.00015041,2]
[421869562,1778254231000,-200.0,0.00015041,2]
[421869547,1778254231000,-1200.0,0.00014566,2]
[421869565,1778254231000,-200.0,0.0001515,2]
[421869564,1778254231000,-5498.6,0.00015063,2]
[421869584,1778254231000,-930.91,0.000157,2]
[421869578,1778254231000,-175.41,0.00015327,2]
[421869577,1778254231000,-930.91,0.00015326,2]
[421869576,1778254231000,-200.0,0.00015301,2]
[421869581,1778254231000,-200.0,0.00015455,2]
[421869575,1778254231000,-228.0,0.00015296,2]
[421869579,1778254231000,-300.0,0.00015435,2]
[421869582,1778254231000,-200.0,0.00015609,2]
[421869583,1778254231000,-166.15,0.00015693,2]
[421869585,1778254231000,-200.0,0.00015953,2]
[421869574,1778254231000,-151.0,0.00015296,2]
[421869573,1778254231000,-153.0,0.00015296,2]
[421869572,1778254231000,-207.99170503,0.00015295,2]
[421869568,1778254231000,-167.16623666,0.00015254,2]
[421869567,1778254231000,-154.64,0.00015248,2]
[421869566,1778254231000,-200.0,0.00015191,2]
[421869569,1778254231000,-250.0,0.00015254,2]
[421869570,1778254231000,-214.68143985,0.00015295,2]
[421869580,1778254231000,-671.05878005,0.00015435,2]
[421869571,1778254231000,-160.0,0.00015295,2]
[421869595,1778254232000,-500.0,0.00016015,2]
[421869596,1778254232000,-348.38606468,0.00016015,2]
[421869588,1778254232000,-300.0,0.00016,2]
[421869590,1778254232000,-473.52157341,0.00016,2]
[421869586,1778254232000,-152.0,0.00015982,7]
[421869601,1778254232000,-731.3672,0.00016016,2]
[421869598,1778254232000,-33390.55402519,0.00016016,2]
[421869608,1778254232000,-1873.69118943,0.00016016,2]
[421869603,1778254232000,-8053.07254739,0.00016016,2]
[421869592,1778254232000,-500.0,0.00016015,2]
[421869606,1778254232000,-15158.61043862,0.00016016,2]
[421869754,1778254237000,-2649.76559424,0.00016016,2]
[421869752,1778254237000,-398.08655096,0.00016016,2]
[421869753,1778254237000,-1394.76914681,0.00016016,2]
[421869751,1778254237000,-737.03419796,0.00016016,2]
[421869750,1778254237000,-2329.94536344,0.00016016,2]
[421869749,1778254237000,-755.79103816,0.00016016,2]
[421869957,1778254239000,-417.0,0.00016016,2]
[421869954,1778254239000,-367.97335833,0.00016016,2]
[421870222,1778254242000,-766.38353733,0.00016016,2]
[421870223,1778254243000,-56.5784249,0.00016016,2]
[421870224,1778254243000,-903.27228878,0.00016016,2]
[421870230,1778254246000,-7045.05140294,0.00016016,2]
[421870233,1778254246000,-1680.0,0.00016022,2]
[421870237,1778254246000,-150.99,0.00016116,2]
[421870236,1778254246000,-200.0,0.00016113,2]
[421870234,1778254246000,-930.91,0.00016073,2]
[421870239,1778254246000,-3650.58991278,0.00016116,2]
[421870238,1778254246000,-5522.87008722,0.00016116,2]
[421870232,1778254246000,-77000.55009552,0.00016016,2]
[421870242,1778254246000,-200.0,0.00016274,2]
[421870243,1778254246000,-181.99256491,0.0001629,2]
[421870240,1778254246000,-1910.78,0.00016116,5]
[421870241,1778254246000,-473.52157341,0.000162,2]
[421870235,1778254246000,-473.52157341,0.000161,2]
[421870249,1778254692000,150.0,0.000125,2]
[421870251,1778254846000,-250.0,0.00014,2]
[421870252,1778254900000,155.74,8.38e-05,2]
[421870253,1778254986000,524.0,0.00014,5]
[421870269,1778255431000,-179.18756609,0.00015449,2]
[421870267,1778255431000,-152.0,0.00015224,2]
[421870268,1778255431000,-151.0,0.00015268,2]
[421870274,1778255431000,-1213.16,0.00015464,2]
[421870263,1778255431000,-200.0,0.00015096,2]
[421870266,1778255431000,-151.0,0.00015214,2]
[421870264,1778255431000,-200.0,0.00015211,2]
[421870265,1778255431000,-258.0,0.00015212,2]
[421870262,1778255431000,-247.74,0.00014891,2]
[421870273,1778255431000,-153.0,0.00015454,2]
[421870270,1778255431000,-150.0,0.00015449,2]
[421870276,1778255431000,-151.0,0.00015542,2]
[421870272,1778255431000,-152.0,0.0001545,2]
[421870287,1778255431000,-93690.51950844,0.00015816,2]
[421870275,1778255431000,-153.0,0.0001547,2]
[421870278,1778255431000,-976.98035337,0.0001579,2]
[421870277,1778255431000,-152.0,0.00015789,7]
[421870280,1778255431000,-214.68143985,0.00015792,2]
[421870281,1778255431000,-207.99170503,0.00015792,2]
[421870282,1778255431000,-1200.0,0.00015815,2]
[421870283,1778255431000,-222507.7328578,0.00015816,2]
[421870279,1778255431000,-160.0,0.00015792,2]
[421870271,1778255431000,-151.0,0.00015449,2]
[421870286,1778255431000,-5561.54742979,0.00015816,2]
[421870292,1778255432000,-604.38570629,0.00015816,2]
[421870311,1778255437000,-13208.04281718,0.00015816,2]
[421870312,1778255438000,-816.3775553,0.00015816,2]
[421870313,1778255438000,-2339.5,0.00015816,2]
[421870370,1778255445000,-3129.11213903,0.00015816,2]
[421870369,1778255445000,-152.0,0.00015324,7]
[421870371,1778255445000,-12105.88709896,0.00015816,2]
[421870378,1778255447000,-1560.93238615,0.00015816,2]
[421870379,1778255447000,-268.439985,0.00015816,2]
[421870377,1778255447000,-408.08058405,0.00015816,2]
[421870391,1778255880000,-1000.0,0.00015,2]
[421870390,1778255880000,-150.0,0.00014999,2]
[421870392,1778255880000,-2129.92,0.00015,2]
[421870405,1778255881000,-1200.0,0.00015815,2]
[421870406,1778255881000,-22081.68783201,0.00015816,2]
[421870408,1778255881000,-492.1309341,0.00015857,2]
[421870411,1778255881000,-500.0,0.0001589,2]
[421870409,1778255881000,-500.0,0.0001589,2]
[421870412,1778255881000,-150.0,0.0001589,2]
[421870413,1778255881000,-500.0,0.0001589,2]
[421870404,1778255881000,-207.99170503,0.00015755,2]
[421870410,1778255881000,-500.0,0.0001589,2]
[421870402,1778255881000,-214.68143985,0.00015755,2]
[421870399,1778255881000,-187.38,0.00015577,2]
[421870398,1778255881000,-499.0,0.00015,2]
[421870400,1778255881000,-500.0,0.00015644,2]
[421870401,1778255881000,-164.42799879,0.00015716,2]
[421870397,1778255881000,-998.4,0.00015,2]
[421870393,1778255881000,-1597.44,0.00015,2]
[421870396,1778255881000,-499.2,0.00015,2]
[421870395,1778255881000,-1198.08,0.00015,2]
[421870394,1778255881000,-1597.44,0.00015,2]
[421870414,1778255881000,-500.0,0.0001589,2]
[421870403,1778255881000,-160.0,0.00015755,2]
[421870415,1778255881000,-150.0,0.0001589,2]
[421870407,1778255881000,-164.42799878,0.00015822,2]
[421870417,1778255881000,-500.0,0.0001589,2]
[421870416,1778255881000,-500.0,0.0001589,2]
[421870435,1778255881000,-500.0,0.0001589,2]
[421870436,1778255881000,-500.0,0.0001589,2]
[421870434,1778255881000,-500.0,0.0001589,2]
[421870433,1778255881000,-500.0,0.0001589,2]
[421870432,1778255881000,-500.0,0.0001589,2]
[421870430,1778255881000,-500.0,0.0001589,2]
[421870431,1778255881000,-500.0,0.0001589,2]
[421870427,1778255881000,-500.0,0.0001589,2]
[421870429,1778255881000,-500.0,0.0001589,2]
[421870437,1778255881000,-500.0,0.0001589,2]
[421870426,1778255881000,-500.0,0.0001589,2]
[421870428,1778255881000,-500.0,0.0001589,2]
[421870419,1778255881000,-500.0,0.0001589,2]
[421870420,1778255881000,-500.0,0.0001589,2]
[421870421,1778255881000,-500.0,0.0001589,2]
[421870418,1778255881000,-150.0,0.0001589,2]
[421870422,1778255881000,-501.01972691,0.0001589,2]
[421870438,1778255881000,-500.0,0.0001589,2]
[421870424,1778255881000,-500.0,0.0001589,2]
[421870425,1778255881000,-500.0,0.0001589,2]
[421870423,1778255881000,-216.62043899,0.0001589,2]
[421870451,1778255882000,-500.0,0.00015912,2]
[421870460,1778255882000,-300.0,0.00016,2]
[421870457,1778255882000,-1798.80895523,0.00015912,2]
[421870455,1778255882000,-500.0,0.00015912,2]
[421870453,1778255882000,-500.0,0.00015912,2]
[421870456,1778255882000,-500.0,0.00015912,2]
[421870454,1778255882000,-500.0,0.00015912,2]
[421870449,1778255882000,-500.0,0.00015912,2]
[421870452,1778255882000,-500.0,0.00015912,2]
[421870444,1778255882000,-151.0,0.00015912,2]
[421870448,1778255882000,-500.0,0.00015912,2]
[421870446,1778255882000,-500.0,0.00015912,2]
[421870447,1778255882000,-500.0,0.00015912,2]
[421870445,1778255882000,-151.0,0.00015912,2]
[421870442,1778255882000,-200.0,0.00015912,2]
[421870443,1778255882000,-151.0,0.00015912,2]
[421870441,1778255882000,-500.0,0.0001589,2]
[421870439,1778255882000,-500.0,0.0001589,2]
[421870440,1778255882000,-544.95889557,0.0001589,2]
[421870450,1778255882000,-500.0,0.00015912,2]
[421870461,1778255882000,-165.9945244,0.00016,10]
[421870462,1778255882000,-500.0,0.00016016,2]
[421870459,1778255882000,-987.4476,0.0001592,2]
[421870458,1778255882000,-4843.3962784,0.0001592,2]
[421870482,1778255882000,-4445.27,0.00016116,2]
[421870481,1778255882000,-589.58,0.00016116,2]
[421870479,1778255882000,-1910.78,0.00016116,5]
[421870480,1778255882000,-150.99,0.00016116,2]
[421870478,1778255882000,-2761.82,0.00016097,2]
[421870474,1778255882000,-155.61020504,0.00016016,2]
[421870475,1778255882000,-234.55796796,0.00016016,2]
[421870477,1778255882000,-24560.85487276,0.00016072,2]
[421870473,1778255882000,-500.0,0.00016016,2]
[421870483,1778255882000,-255.0,0.00016124,2]
[421870471,1778255882000,-150.0,0.00016016,2]
[421870472,1778255882000,-500.0,0.00016016,2]
[421870464,1778255882000,-150.0,0.00016016,2]
[421870463,1778255882000,-159.1511202,0.00016016,2]
[421870466,1778255882000,-150.0,0.00016016,2]
[421870465,1778255882000,-150.0,0.00016016,2]
[421870468,1778255882000,-169.04303863,0.00016016,2]
[421870469,1778255882000,-206.97213318,0.00016016,2]
[421870470,1778255882000,-150.0,0.00016016,2]
[421870467,1778255882000,-150.0,0.00016016,2]
[421870495,1778255883000,-519.29483891,0.00016164,2]
[421870502,1778255883000,-200.0,0.0001629,2]
[421870499,1778255883000,-200.0,0.0001629,2]
[421870496,1778255883000,-551.96948306,0.00016164,2]
[421870498,1778255883000,-500.0,0.0001629,2]
[421870501,1778255883000,-1002.83573074,0.0001629,2]
[421870497,1778255883000,-156.86292928,0.00016164,2]
[421870493,1778255883000,-500.0,0.00016164,2]
[421870491,1778255883000,-500.0,0.00016164,2]
[421870492,1778255883000,-500.0,0.00016164,2]
[421870489,1778255883000,-296.6104039,0.00016164,2]
[421870490,1778255883000,-500.0,0.00016164,2]
[421870488,1778255883000,-150.0,0.00016164,2]
[421870485,1778255883000,-150.0,0.00016164,2]
[421870487,1778255883000,-189.22134171,0.00016164,2]
[421870486,1778255883000,-150.0,0.00016164,2]
[421870484,1778255883000,-150.0,0.00016164,2]
[421870494,1778255883000,-500.0,0.00016164,2]